[Event "Late-Titled-Tuesday-Blitz-September-19-2023"]
[Site "Chess.com"]
[Date "2023.09.19"]
[Round "3"]
[White "bipe137"]
[Black "bascheyaro"]
[Result "1-0"]
[WhiteElo "2559"]
[BlackElo "2808"]
[TimeControl "180+1"]
[EndTime "14:26:49 PDT"]
[Termination "bipe137 won on time"]

1. d4 {[%clk 0:03:00.9]} 1... d5 {[%clk 0:03:00.1]} 2. c4 {[%clk 0:02:59.2]}
2... c6 {[%clk 0:03:00.5]} 3. cxd5 {[%clk 0:02:57.8]} 3... cxd5 {[%clk
0:03:01.4]} 4. Bg5 {[%clk 0:02:57.2]} 4... Nc6 {[%clk 0:03:01]} 5. Nc3 {[%clk
0:02:54.3]} 5... h6 {[%clk 0:03:00.5]} 6. Bh4 {[%clk 0:02:53.3]} 6... Nf6 {[%clk
0:02:22]} 7. Bxf6 {[%clk 0:02:52.7]} 7... gxf6 {[%clk 0:02:22.1]} 8. e3 {[%clk
0:02:53.6]} 8... a6 {[%clk 0:02:21.9]} 9. Bd3 {[%clk 0:02:52.5]} 9... f5 {[%clk
0:02:21.3]} 10. f4 {[%clk 0:02:52.1]} 10... e6 {[%clk 0:02:19]} 11. Nf3 {[%clk
0:02:52.4]} 11... Bd7 {[%clk 0:02:18.8]} 12. Rc1 {[%clk 0:02:50.8]} 12... Rg8
{[%clk 0:02:18.4]} 13. Kf2 {[%clk 0:02:46.3]} 13... Rc8 {[%clk 0:02:11.8]} 14.
Rg1 {[%clk 0:02:44.1]} 14... Bd6 {[%clk 0:02:09.7]} 15. h3 {[%clk 0:02:44.3]}
15... b5 {[%clk 0:02:08.8]} 16. g4 {[%clk 0:02:43.1]} 16... fxg4 {[%clk
0:02:06]} 17. hxg4 {[%clk 0:02:44]} 17... Qf6 {[%clk 0:02:05.1]} 18. Ne2 {[%clk
0:02:40.3]} 18... Ke7 {[%clk 0:02:03.6]} 19. Qf1 {[%clk 0:02:37]} 19... Nb4
{[%clk 0:01:55]} 20. Bb1 {[%clk 0:02:34.6]} 20... Rxc1 {[%clk 0:01:39.3]} 21.
Nxc1 {[%clk 0:02:32.8]} 21... Rc8 {[%clk 0:01:23.2]} 22. a3 {[%clk 0:02:32.1]}
22... Nc6 {[%clk 0:01:21.5]} 23. Nd3 {[%clk 0:02:31.2]} 23... Na5 {[%clk
0:01:21.2]} 24. Qe2 {[%clk 0:02:15.7]} 24... Nc4 {[%clk 0:01:17.3]} 25. Nde5
{[%clk 0:02:07]} 25... b4 {[%clk 0:01:05.2]} 26. axb4 {[%clk 0:02:04.9]} 26...
Bxb4 {[%clk 0:01:04.8]} 27. Bd3 {[%clk 0:02:02.9]} 27... Bb5 {[%clk 0:01:02.6]}
28. b3 {[%clk 0:01:51.5]} 28... Nd6 {[%clk 0:01:02.3]} 29. g5 {[%clk 0:01:42]}
29... hxg5 {[%clk 0:00:42.2]} 30. Nxg5 {[%clk 0:01:42.1]} 30... Qh6 {[%clk
0:00:36.9]} 31. Bxb5 {[%clk 0:01:16.9]} 31... axb5 {[%clk 0:00:36.5]} 32. Nd3
{[%clk 0:01:09.9]} 32... Qh4+ {[%clk 0:00:18.4]} 33. Kf1 {[%clk 0:01:02]} 33...
Ne4 {[%clk 0:00:07.7]} 34. Rg4 {[%clk 0:00:48.6]} 34... Qh1+ {[%clk 0:00:04.6]}
35. Rg1 {[%clk 0:00:49.2]} 35... Ng3+ {[%clk 0:00:04.5]} 36. Kf2 {[%clk
0:00:43]} 36... Qxg1+ {[%clk 0:00:04.7]} 37. Kxg1 {[%clk 0:00:43.8]} 37... Nxe2+
{[%clk 0:00:05.6]} 38. Kf2 {[%clk 0:00:43.9]} 38... Nxd4 {[%clk 0:00:02.3]} 39.
Nxb4 {[%clk 0:00:42.1]} 39... Nxb3 {[%clk 0:00:01.7]} 40. Nf3 {[%clk 0:00:41.4]}
40... Nc5 {[%clk 0:00:02.3]} 41. Nd4 {[%clk 0:00:41.3]} 41... Nd7 {[%clk
0:00:02.7]} 42. Nxb5 {[%clk 0:00:40.6]} 42... Rc5 {[%clk 0:00:00.5]} 43. Nd4
{[%clk 0:00:39.7]} 43... Nb8 {[%clk 0:00:01]} 44. Nbc6+ {[%clk 0:00:40.6]} 1-0

[Event "Late-Titled-Tuesday-Blitz-September-19-2023"]
[Site "Chess.com"]
[Date "2023.09.19"]
[Round "3"]
[White "ValeriyGrinev"]
[Black "VitaliyBernadskiy"]
[Result "0-1"]
[WhiteElo "2566"]
[BlackElo "2852"]
[TimeControl "180+1"]
[EndTime "14:26:52 PDT"]
[Termination "VitaliyBernadskiy won by resignation"]

1. d4 {[%clk 0:02:59.2]} 1... c5 {[%clk 0:02:59.6]} 2. d5 {[%clk 0:02:59.2]}
2... d6 {[%clk 0:02:58.8]} 3. Nc3 {[%clk 0:02:59.5]} 3... g6 {[%clk 0:02:59.3]}
4. e4 {[%clk 0:02:59.7]} 4... Bg7 {[%clk 0:02:59.6]} 5. Nf3 {[%clk 0:03:00.4]}
5... Nf6 {[%clk 0:02:59.5]} 6. Be2 {[%clk 0:03:00.6]} 6... O-O {[%clk 0:03:00]}
7. O-O {[%clk 0:03:00.9]} 7... Na6 {[%clk 0:03:00.9]} 8. h3 {[%clk 0:03:00]}
8... Rb8 {[%clk 0:03:01.2]} 9. Re1 {[%clk 0:02:57.8]} 9... Nc7 {[%clk
0:02:51.5]} 10. a4 {[%clk 0:02:57.7]} 10... b6 {[%clk 0:02:51.8]} 11. Bf4 {[%clk
0:02:56.4]} 11... Bb7 {[%clk 0:02:34.8]} 12. Bc4 {[%clk 0:02:55]} 12... a6
{[%clk 0:02:24.3]} 13. Qd3 {[%clk 0:02:55.1]} 13... Nh5 {[%clk 0:01:45.3]} 14.
Bh2 {[%clk 0:02:54.2]} 14... Nf6 {[%clk 0:01:30.7]} 15. Rad1 {[%clk 0:02:52.8]}
15... Nd7 {[%clk 0:01:30]} 16. e5 {[%clk 0:02:48.7]} 16... b5 {[%clk 0:01:24.3]}
17. axb5 {[%clk 0:02:23.2]} 17... Nb6 {[%clk 0:01:24]} 18. bxa6 {[%clk
0:02:13.2]} 18... Nxc4 {[%clk 0:01:24]} 19. Qxc4 {[%clk 0:02:04.1]} 19... Bxa6
{[%clk 0:01:24.2]} 20. Qa2 {[%clk 0:01:58.9]} 20... Rb4 {[%clk 0:01:21.4]} 21.
exd6 {[%clk 0:01:58]} 21... exd6 {[%clk 0:01:22.3]} 22. Ne4 {[%clk 0:01:48.2]}
22... Rxb2 {[%clk 0:01:19.5]} 23. Qa5 {[%clk 0:01:48.6]} 23... Rb5 {[%clk
0:01:06.6]} 24. Qd2 {[%clk 0:01:40.9]} 24... Rb6 {[%clk 0:01:04.2]} 25. Qa5
{[%clk 0:01:23.7]} 25... Nb5 {[%clk 0:00:57.1]} 26. Rb1 {[%clk 0:01:02.8]} 26...
c4 {[%clk 0:00:55.2]} 27. Nxd6 {[%clk 0:00:54]} 27... Bc3 {[%clk 0:00:51]} 28.
Qa4 {[%clk 0:00:25.5]} 28... Bxe1 {[%clk 0:00:41.2]} 29. Nxc4 {[%clk 0:00:24.8]}
29... Nc3 {[%clk 0:00:34.4]} 30. Rxb6 {[%clk 0:00:21.9]} 30... Nxa4 {[%clk
0:00:34.2]} 31. Rxa6 {[%clk 0:00:22.6]} 31... Nc5 {[%clk 0:00:20.7]} 32. Rd6
{[%clk 0:00:21.9]} 32... Qe8 {[%clk 0:00:19.9]} 33. Be5 {[%clk 0:00:19.8]} 33...
Bb4 {[%clk 0:00:17.2]} 34. Rc6 {[%clk 0:00:19]} 34... Ne4 {[%clk 0:00:15.3]} 35.
Bd4 {[%clk 0:00:18.8]} 35... Qd7 {[%clk 0:00:13.1]} 36. Rb6 {[%clk 0:00:17]}
36... Bc5 {[%clk 0:00:12.1]} 37. Nce5 {[%clk 0:00:16.4]} 37... Qxd5 {[%clk
0:00:08.3]} 38. c4 {[%clk 0:00:16.9]} 38... Qxd4 {[%clk 0:00:07.6]} 39. Nxd4
{[%clk 0:00:16.5]} 39... Bxb6 {[%clk 0:00:08.3]} 40. Nb5 {[%clk 0:00:16.1]}
40... Bxf2+ {[%clk 0:00:08.5]} 0-1

[Event "Late-Titled-Tuesday-Blitz-September-19-2023"]
[Site "Chess.com"]
[Date "2023.09.19"]
[Round "3"]
[White "Ykow"]
[Black "ritanovikova"]
[Result "0-1"]
[WhiteElo "2493"]
[BlackElo "2151"]
[TimeControl "180+1"]
[EndTime "14:26:52 PDT"]
[Termination "ritanovikova won on time"]

1. g4 {[%clk 0:03:00]} 1... Nc6 {[%clk 0:02:51.1]} 2. Bg2 {[%clk 0:02:54.6]}
2... d5 {[%clk 0:02:49.5]} 3. c4 {[%clk 0:02:48.5]} 3... dxc4 {[%clk 0:02:42.5]}
4. Qa4 {[%clk 0:02:47.9]} 4... Bxg4 {[%clk 0:02:29.8]} 5. Nf3 {[%clk 0:02:37.1]}
5... Bd7 {[%clk 0:02:20.1]} 6. Qxc4 {[%clk 0:02:34.9]} 6... Nf6 {[%clk
0:02:11.9]} 7. Nc3 {[%clk 0:02:34.5]} 7... e6 {[%clk 0:02:08.4]} 8. e4 {[%clk
0:02:33.8]} 8... e5 {[%clk 0:01:47.8]} 9. d4 {[%clk 0:02:30.2]} 9... Bd6 {[%clk
0:01:36.9]} 10. d5 {[%clk 0:02:16.2]} 10... Ne7 {[%clk 0:01:28.2]} 11. Bg5
{[%clk 0:02:14.8]} 11... Ng6 {[%clk 0:01:19.4]} 12. Rc1 {[%clk 0:02:15.1]} 12...
a6 {[%clk 0:01:18.6]} 13. h4 {[%clk 0:02:12.8]} 13... h6 {[%clk 0:01:17.8]} 14.
Be3 {[%clk 0:02:11.7]} 14... Ng4 {[%clk 0:01:10.2]} 15. h5 {[%clk 0:02:09.7]}
15... Nxe3 {[%clk 0:01:07]} 16. fxe3 {[%clk 0:02:10.6]} 16... Ne7 {[%clk
0:01:05.4]} 17. Bh3 {[%clk 0:02:11]} 17... Bxh3 {[%clk 0:01:04.3]} 18. Rxh3
{[%clk 0:02:11.9]} 18... Qd7 {[%clk 0:01:04.2]} 19. Rg3 {[%clk 0:02:11.9]} 19...
g6 {[%clk 0:00:59.8]} 20. Nd1 {[%clk 0:01:58.1]} 20... g5 {[%clk 0:00:52.2]} 21.
Nf2 {[%clk 0:01:58.2]} 21... f5 {[%clk 0:00:51.8]} 22. Nd3 {[%clk 0:01:56.8]}
22... f4 {[%clk 0:00:47.8]} 23. Ndxe5 {[%clk 0:00:34.5]} 23... Bxe5 {[%clk
0:00:46.9]} 24. Nxe5 {[%clk 0:00:35.4]} 24... Qd6 {[%clk 0:00:44.6]} 25. exf4
{[%clk 0:00:35.9]} 25... gxf4 {[%clk 0:00:38.3]} 26. Ng4 {[%clk 0:00:29]} 26...
fxg3 {[%clk 0:00:36.1]} 27. e5 {[%clk 0:00:29.3]} 27... Qb6 {[%clk 0:00:32.1]}
28. Nf6+ {[%clk 0:00:28.4]} 28... Kd8 {[%clk 0:00:21.2]} 29. d6 {[%clk
0:00:27.6]} 29... Qf2+ {[%clk 0:00:15.4]} 30. Kd1 {[%clk 0:00:27.7]} 30... Qf3+
{[%clk 0:00:11.7]} 31. Kd2 {[%clk 0:00:23.1]} 31... Qf2+ {[%clk 0:00:11.2]} 0-1

[Event "Late-Titled-Tuesday-Blitz-September-19-2023"]
[Site "Chess.com"]
[Date "2023.09.19"]
[Round "3"]
[White "GiorgianBarbosa"]
[Black "serhanberat_ozdemir"]
[Result "0-1"]
[WhiteElo "2452"]
[BlackElo "2625"]
[TimeControl "180+1"]
[EndTime "14:26:57 PDT"]
[Termination "serhanberat_ozdemir won by checkmate"]

1. c4 {[%clk 0:03:00.3]} 1... Nf6 {[%clk 0:02:58.5]} 2. g3 {[%clk 0:03:01.2]}
2... g6 {[%clk 0:02:58.5]} 3. Bg2 {[%clk 0:03:02.1]} 3... Bg7 {[%clk 0:02:58.9]}
4. Nc3 {[%clk 0:03:03]} 4... O-O {[%clk 0:02:59.1]} 5. e3 {[%clk 0:03:03.9]}
5... d6 {[%clk 0:02:52.3]} 6. Nge2 {[%clk 0:03:04.8]} 6... e5 {[%clk 0:02:48.3]}
7. O-O {[%clk 0:03:04.3]} 7... Re8 {[%clk 0:02:48.3]} 8. d3 {[%clk 0:03:04.7]}
8... Nc6 {[%clk 0:02:45.1]} 9. Rb1 {[%clk 0:03:04.1]} 9... Bf5 {[%clk
0:02:44.5]} 10. b4 {[%clk 0:03:01.2]} 10... Qd7 {[%clk 0:02:40.3]} 11. Re1
{[%clk 0:02:59.4]} 11... e4 {[%clk 0:02:32.1]} 12. d4 {[%clk 0:02:56.6]} 12...
h5 {[%clk 0:02:29.5]} 13. h4 {[%clk 0:02:39.2]} 13... Nd8 {[%clk 0:02:08.9]} 14.
Nf4 {[%clk 0:02:38.3]} 14... Ne6 {[%clk 0:02:03.2]} 15. Ncd5 {[%clk 0:02:32]}
15... Nxf4 {[%clk 0:02:02.5]} 16. Nxf4 {[%clk 0:02:31.9]} 16... Bg4 {[%clk
0:01:54.2]} 17. Qc2 {[%clk 0:02:26.9]} 17... Qf5 {[%clk 0:01:52.9]} 18. d5
{[%clk 0:01:49.3]} 18... g5 {[%clk 0:01:37.4]} 19. hxg5 {[%clk 0:01:50.2]} 19...
Nh7 {[%clk 0:01:37.3]} 20. Bb2 {[%clk 0:01:51.1]} 20... Nxg5 {[%clk 0:01:37.7]}
21. Bxg7 {[%clk 0:01:50]} 21... Kxg7 {[%clk 0:01:38.3]} 22. Kf1 {[%clk
0:01:28.9]} 22... Rh8 {[%clk 0:01:34.4]} 23. Rec1 {[%clk 0:01:24.6]} 23... h4
{[%clk 0:01:24.9]} 24. gxh4 {[%clk 0:01:11.6]} 24... Rxh4 {[%clk 0:01:25.8]} 25.
Ke1 {[%clk 0:01:11.6]} 25... Bf3 {[%clk 0:01:18.5]} 26. Bf1 {[%clk 0:01:06.5]}
26... Rh2 {[%clk 0:01:13.8]} 27. c5 {[%clk 0:00:54.9]} 27... Qg4 {[%clk
0:00:59.3]} 28. cxd6 {[%clk 0:00:50.7]} 28... Qg1 {[%clk 0:00:54.8]} 29. Qb2+
{[%clk 0:00:14.5]} 29... Kg8 {[%clk 0:00:44.7]} 30. Ne2 {[%clk 0:00:07.7]} 30...
Qxf2+ {[%clk 0:00:37.4]} 31. Kd2 {[%clk 0:00:08.1]} 31... Bxe2 {[%clk 0:00:36]}
32. Kc3 {[%clk 0:00:07.3]} 32... Qxe3+ {[%clk 0:00:32.8]} 33. Kc2 {[%clk
0:00:04]} 33... Bd3+ {[%clk 0:00:17.6]} 34. Kd1 {[%clk 0:00:04.9]} 34... Qf3+
{[%clk 0:00:09.4]} 35. Ke1 {[%clk 0:00:04.5]} 35... Qxf1# {[%clk 0:00:08.8]} 0-1

[Event "Late-Titled-Tuesday-Blitz-September-19-2023"]
[Site "Chess.com"]
[Date "2023.09.19"]
[Round "3"]
[White "MessiKingdom"]
[Black "sergoy"]
[Result "0-1"]
[WhiteElo "2627"]
[BlackElo "2909"]
[TimeControl "180+1"]
[EndTime "14:26:59 PDT"]
[Termination "sergoy won by resignation"]

1. d4 {[%clk 0:03:00.9]} 1... d5 {[%clk 0:02:59.6]} 2. Bf4 {[%clk 0:03:00.8]}
2... Nf6 {[%clk 0:02:59.1]} 3. e3 {[%clk 0:02:59.2]} 3... c5 {[%clk 0:02:59.2]}
4. Nf3 {[%clk 0:02:59.2]} 4... Nc6 {[%clk 0:02:59.2]} 5. Nbd2 {[%clk 0:02:59.7]}
5... cxd4 {[%clk 0:02:58.5]} 6. exd4 {[%clk 0:02:59.5]} 6... Bg4 {[%clk
0:02:58.6]} 7. c3 {[%clk 0:02:59.4]} 7... e6 {[%clk 0:02:59]} 8. Qb3 {[%clk
0:02:57.5]} 8... Qc8 {[%clk 0:02:57.8]} 9. Bd3 {[%clk 0:02:56.2]} 9... Be7
{[%clk 0:02:57.2]} 10. O-O {[%clk 0:02:47.8]} 10... O-O {[%clk 0:02:56.4]} 11.
Ne5 {[%clk 0:02:31.8]} 11... Bh5 {[%clk 0:02:56.6]} 12. Qc2 {[%clk 0:02:15.2]}
12... Bg6 {[%clk 0:02:45.2]} 13. Nxg6 {[%clk 0:02:12.1]} 13... hxg6 {[%clk
0:02:46.1]} 14. Nf3 {[%clk 0:02:12]} 14... a6 {[%clk 0:02:22.7]} 15. Qe2 {[%clk
0:02:11.4]} 15... b5 {[%clk 0:02:21.1]} 16. a3 {[%clk 0:02:03.7]} 16... Na5
{[%clk 0:02:17.9]} 17. Ne5 {[%clk 0:01:46.6]} 17... Nc4 {[%clk 0:02:17.8]} 18.
a4 {[%clk 0:01:46.5]} 18... Nh5 {[%clk 0:01:44.1]} 19. Bd2 {[%clk 0:01:24.8]}
19... Qb7 {[%clk 0:01:34.6]} 20. Nxg6 {[%clk 0:01:01.9]} 20... fxg6 {[%clk
0:00:52.5]} 21. Qxe6+ {[%clk 0:01:00.9]} 21... Kh8 {[%clk 0:00:47.9]} 22. Qxg6
{[%clk 0:00:57.6]} 22... Nf6 {[%clk 0:00:46.7]} 23. Bh6 {[%clk 0:00:22.2]} 23...
Bd8 {[%clk 0:00:39.2]} 24. Bg5 {[%clk 0:00:13.6]} 24... Ne4 {[%clk 0:00:38.6]}
25. Qh5+ {[%clk 0:00:11.3]} 25... Kg8 {[%clk 0:00:36.5]} 26. Bxd8 {[%clk
0:00:05.9]} 26... Raxd8 {[%clk 0:00:37.4]} 27. axb5 {[%clk 0:00:06]} 27... axb5
{[%clk 0:00:36.4]} 28. f3 {[%clk 0:00:05.1]} 28... Nf6 {[%clk 0:00:34.1]} 29.
Qg6 {[%clk 0:00:05.3]} 29... Qf7 {[%clk 0:00:22]} 30. Qg5 {[%clk 0:00:05.4]}
30... Qh5 {[%clk 0:00:20.3]} 31. Qc1 {[%clk 0:00:02.5]} 31... Rfe8 {[%clk
0:00:18.8]} 32. b3 {[%clk 0:00:01.7]} 32... Nd6 {[%clk 0:00:15.8]} 33. Re1
{[%clk 0:00:01.7]} 33... Qh4 {[%clk 0:00:12.7]} 34. Rxe8+ {[%clk 0:00:01.8]}
34... Rxe8 {[%clk 0:00:13.6]} 35. Qd2 {[%clk 0:00:02.5]} 35... b4 {[%clk
0:00:11.6]} 36. cxb4 {[%clk 0:00:02.6]} 36... Qxd4+ {[%clk 0:00:11.3]} 0-1

[Event "Late-Titled-Tuesday-Blitz-September-19-2023"]
[Site "Chess.com"]
[Date "2023.09.19"]
[Round "3"]
[White "TatjanaVasilevich"]
[Black "Dontmesswithme_2"]
[Result "0-1"]
[WhiteElo "2562"]
[BlackElo "2429"]
[TimeControl "180+1"]
[EndTime "14:27:00 PDT"]
[Termination "Dontmesswithme_2 won by checkmate"]

1. e4 {[%clk 0:02:59.8]} 1... e6 {[%clk 0:02:59.5]} 2. d4 {[%clk 0:02:59.3]}
2... d5 {[%clk 0:02:59.4]} 3. e5 {[%clk 0:03:00]} 3... c5 {[%clk 0:02:57]} 4. c3
{[%clk 0:03:00.3]} 4... Nc6 {[%clk 0:02:57.5]} 5. Nf3 {[%clk 0:03:00.5]} 5...
Qb6 {[%clk 0:02:58.1]} 6. Be2 {[%clk 0:03:00.9]} 6... Bd7 {[%clk 0:02:58.8]} 7.
O-O {[%clk 0:03:01.1]} 7... cxd4 {[%clk 0:02:58.6]} 8. cxd4 {[%clk 0:03:02]}
8... Nge7 {[%clk 0:02:59]} 9. Na3 {[%clk 0:03:02.2]} 9... Nf5 {[%clk 0:02:59.7]}
10. Nc2 {[%clk 0:03:02.9]} 10... Be7 {[%clk 0:02:59.4]} 11. Rb1 {[%clk
0:03:02.7]} 11... O-O {[%clk 0:02:59.6]} 12. b4 {[%clk 0:03:03]} 12... a6 {[%clk
0:02:57.1]} 13. a3 {[%clk 0:03:00.7]} 13... Na5 {[%clk 0:02:53.3]} 14. g4 {[%clk
0:02:58.3]} 14... Nh4 {[%clk 0:02:49.4]} 15. Nxh4 {[%clk 0:02:53.3]} 15... Bxh4
{[%clk 0:02:50.3]} 16. Ne3 {[%clk 0:02:48.4]} 16... Rac8 {[%clk 0:02:41.9]} 17.
Bb2 {[%clk 0:02:13]} 17... Nc4 {[%clk 0:02:34.3]} 18. Ng2 {[%clk 0:02:13.1]}
18... Be7 {[%clk 0:02:32]} 19. Bd3 {[%clk 0:02:13]} 19... Bb5 {[%clk 0:02:29.3]}
20. h4 {[%clk 0:02:07.6]} 20... Nxb2 {[%clk 0:02:26.8]} 21. Rxb2 {[%clk
0:02:08.5]} 21... Rc3 {[%clk 0:02:23.6]} 22. Bxb5 {[%clk 0:02:07.8]} 22... axb5
{[%clk 0:02:24.5]} 23. Ra2 {[%clk 0:01:51]} 23... Ra8 {[%clk 0:02:11.4]} 24. Ne3
{[%clk 0:01:50.9]} 24... Bxb4 {[%clk 0:02:09.7]} 25. g5 {[%clk 0:01:40.8]} 25...
Bxa3 {[%clk 0:02:07.5]} 26. h5 {[%clk 0:01:37.9]} 26... b4 {[%clk 0:02:05.6]}
27. h6 {[%clk 0:01:38.1]} 27... b3 {[%clk 0:02:05.5]} 28. Re2 {[%clk 0:01:38.2]}
28... Rc1 {[%clk 0:02:03.3]} 29. Qd3 {[%clk 0:01:36.7]} 29... b2 {[%clk
0:02:00.2]} 30. Rxb2 {[%clk 0:01:36.4]} 30... Qxb2 {[%clk 0:01:54.6]} 31. hxg7
{[%clk 0:01:36.5]} 31... Rxf1+ {[%clk 0:01:51.1]} 32. Kxf1 {[%clk 0:01:36.8]}
32... Rc8 {[%clk 0:01:47.5]} 33. Ng4 {[%clk 0:01:32.9]} 33... Qc1+ {[%clk
0:01:43]} 34. Kg2 {[%clk 0:01:29.9]} 34... Qxg5 {[%clk 0:01:43.3]} 35. Kh3
{[%clk 0:01:24.2]} 35... Be7 {[%clk 0:01:42.7]} 36. f3 {[%clk 0:01:14.6]} 36...
b5 {[%clk 0:01:38.9]} 37. Kg2 {[%clk 0:01:00.1]} 37... b4 {[%clk 0:01:35.5]} 38.
Kg3 {[%clk 0:00:48]} 38... f5 {[%clk 0:01:29.3]} 39. exf6 {[%clk 0:00:47.7]}
39... Bd6+ {[%clk 0:01:27.9]} 40. Kh3 {[%clk 0:00:45.1]} 40... h5 {[%clk
0:01:24.5]} 41. f7+ {[%clk 0:00:14.3]} 41... Kxg7 {[%clk 0:01:22.8]} 42. Ne5
{[%clk 0:00:06.3]} 42... Bxe5 {[%clk 0:01:22.6]} 43. dxe5 {[%clk 0:00:07.2]}
43... Qf5+ {[%clk 0:01:22.5]} 44. Qxf5 {[%clk 0:00:07.1]} 44... exf5 {[%clk
0:01:23.4]} 45. e6 {[%clk 0:00:07.9]} 45... b3 {[%clk 0:01:22.9]} 46. Kh4 {[%clk
0:00:08.2]} 46... b2 {[%clk 0:01:23]} 47. Kg5 {[%clk 0:00:09.1]} 47... b1=N
{[%clk 0:01:21]} 48. e7 {[%clk 0:00:10]} 48... Kxf7 {[%clk 0:01:20.8]} 49. Kxf5
{[%clk 0:00:10.5]} 49... Nd2 {[%clk 0:01:20.2]} 50. f4 {[%clk 0:00:10.4]} 50...
Nc4 {[%clk 0:01:19.3]} 51. Kg5 {[%clk 0:00:10.6]} 51... Nd6 {[%clk 0:01:19.4]}
52. Kxh5 {[%clk 0:00:11]} 52... Kxe7 {[%clk 0:01:19.2]} 53. Kg5 {[%clk
0:00:11.5]} 53... Ke6 {[%clk 0:01:19.7]} 54. Kg4 {[%clk 0:00:11.6]} 54... Nf5
{[%clk 0:01:20.6]} 55. Kf3 {[%clk 0:00:12.5]} 55... Rc3+ {[%clk 0:01:19.3]} 56.
Ke2 {[%clk 0:00:12.9]} 56... Re3+ {[%clk 0:01:20.2]} 57. Kd2 {[%clk 0:00:13.8]}
57... d4 {[%clk 0:01:20.8]} 58. Kd1 {[%clk 0:00:14.4]} 58... Kd5 {[%clk
0:01:21.7]} 59. Kd2 {[%clk 0:00:15.3]} 59... Ke4 {[%clk 0:01:22.6]} 60. Kd1
{[%clk 0:00:16.1]} 60... Kxf4 {[%clk 0:01:23.5]} 61. Kd2 {[%clk 0:00:16.7]}
61... Ke4 {[%clk 0:01:24.4]} 62. Kd1 {[%clk 0:00:17.6]} 62... d3 {[%clk
0:01:25.3]} 63. Kd2 {[%clk 0:00:18.5]} 63... Kd4 {[%clk 0:01:22.8]} 64. Kc1
{[%clk 0:00:18.2]} 64... Re2 {[%clk 0:01:23.7]} 65. Kd1 {[%clk 0:00:19.1]} 65...
Ne3+ {[%clk 0:01:23.9]} 66. Kc1 {[%clk 0:00:19.4]} 66... d2+ {[%clk 0:01:24.4]}
67. Kb2 {[%clk 0:00:20.3]} 67... d1=N+ {[%clk 0:01:23.7]} 68. Ka3 {[%clk
0:00:20.9]} 68... Rb2 {[%clk 0:01:22.4]} 69. Ka4 {[%clk 0:00:21.8]} 69... Nc3+
{[%clk 0:01:21.2]} 70. Ka3 {[%clk 0:00:21.9]} 70... Nc4# {[%clk 0:01:08.3]} 0-1

[Event "Late-Titled-Tuesday-Blitz-September-19-2023"]
[Site "Chess.com"]
[Date "2023.09.19"]
[Round "3"]
[White "tteshan"]
[Black "K_alena13"]
[Result "1-0"]
[WhiteElo "2515"]
[BlackElo "2187"]
[TimeControl "180+1"]
[EndTime "14:27:02 PDT"]
[Termination "tteshan won by resignation"]

1. e4 {[%clk 0:02:59.2]} 1... e5 {[%clk 0:02:58.6]} 2. Nf3 {[%clk 0:02:58.8]}
2... Nc6 {[%clk 0:02:58.2]} 3. Bb5 {[%clk 0:02:59.1]} 3... a6 {[%clk 0:02:58.2]}
4. Ba4 {[%clk 0:02:59.4]} 4... Nf6 {[%clk 0:02:57.6]} 5. O-O {[%clk 0:02:59.4]}
5... Be7 {[%clk 0:02:56.5]} 6. Re1 {[%clk 0:02:59.5]} 6... b5 {[%clk 0:02:56.6]}
7. Bb3 {[%clk 0:02:59.7]} 7... d6 {[%clk 0:02:56.8]} 8. c3 {[%clk 0:02:59.6]}
8... O-O {[%clk 0:02:56.8]} 9. h3 {[%clk 0:03:00.2]} 9... Nb8 {[%clk 0:02:56.8]}
10. d4 {[%clk 0:02:59.3]} 10... Nbd7 {[%clk 0:02:56.2]} 11. Nbd2 {[%clk
0:02:59.4]} 11... Bb7 {[%clk 0:02:56]} 12. Bc2 {[%clk 0:02:59.8]} 12... Re8
{[%clk 0:02:56.2]} 13. Nf1 {[%clk 0:02:59.6]} 13... Bf8 {[%clk 0:02:56.1]} 14.
Ng3 {[%clk 0:02:59.9]} 14... g6 {[%clk 0:02:54.4]} 15. a4 {[%clk 0:03:00]} 15...
c6 {[%clk 0:02:52.5]} 16. Bg5 {[%clk 0:02:57.5]} 16... Bg7 {[%clk 0:02:45]} 17.
Qd2 {[%clk 0:02:55.5]} 17... Qc7 {[%clk 0:02:38]} 18. h4 {[%clk 0:02:45.9]}
18... Nf8 {[%clk 0:02:27.5]} 19. h5 {[%clk 0:02:44]} 19... Ne6 {[%clk
0:02:18.5]} 20. Bh6 {[%clk 0:02:33.8]} 20... Bxh6 {[%clk 0:02:00.4]} 21. Qxh6
{[%clk 0:02:34.7]} 21... Ng4 {[%clk 0:02:00.6]} 22. Qd2 {[%clk 0:02:29.2]} 22...
Nf4 {[%clk 0:01:58.8]} 23. Nh2 {[%clk 0:02:17.3]} 23... Nf6 {[%clk 0:01:50.2]}
24. hxg6 {[%clk 0:02:13.7]} 24... hxg6 {[%clk 0:01:50.6]} 25. Qd1 {[%clk
0:01:59]} 25... Qc8 {[%clk 0:01:30.1]} 26. Qf3 {[%clk 0:01:54.5]} 26... Kg7
{[%clk 0:01:27.1]} 27. dxe5 {[%clk 0:01:46.7]} 27... dxe5 {[%clk 0:01:26]} 28.
Red1 {[%clk 0:01:44.4]} 28... Qe6 {[%clk 0:01:16.3]} 29. Ne2 {[%clk 0:01:29.2]}
29... Nxe2+ {[%clk 0:01:11.4]} 30. Qxe2 {[%clk 0:01:30.1]} 30... Rh8 {[%clk
0:01:11]} 31. Qf3 {[%clk 0:01:28]} 31... Qe7 {[%clk 0:00:56.8]} 32. Ng4 {[%clk
0:01:18.2]} 32... Nxg4 {[%clk 0:00:55.8]} 33. Qxg4 {[%clk 0:01:19.1]} 33... Rh4
{[%clk 0:00:53.8]} 34. Qg3 {[%clk 0:01:17.7]} 34... Rah8 {[%clk 0:00:51.7]} 35.
Kf1 {[%clk 0:01:15.8]} 35... Qe6 {[%clk 0:00:44]} 36. b3 {[%clk 0:00:54.9]}
36... c5 {[%clk 0:00:28.4]} 37. axb5 {[%clk 0:00:53.1]} 37... axb5 {[%clk
0:00:24.1]} 38. Qf3 {[%clk 0:00:49.7]} 38... Rf4 {[%clk 0:00:17.5]} 39. Qe3
{[%clk 0:00:47]} 39... c4 {[%clk 0:00:14.4]} 40. b4 {[%clk 0:00:28.2]} 40... Qg4
{[%clk 0:00:13.8]} 41. f3 {[%clk 0:00:24.6]} 41... Qg3 {[%clk 0:00:11.3]} 42.
Qf2 {[%clk 0:00:24.3]} 42... Qxf2+ {[%clk 0:00:07.6]} 43. Kxf2 {[%clk
0:00:24.7]} 43... Rf6 {[%clk 0:00:03.8]} 44. Rd7 {[%clk 0:00:24.3]} 44... g5
{[%clk 0:00:02.9]} 45. Rxb7 {[%clk 0:00:23.6]} 1-0